bitfinex-derivatives/quotes_BNBF0:USTF0_20260110
["timestamp","ask_amount","ask_price","bid_price","bid_amount"]
[1768088952879,0.19166003,908.59,907.93,0.67926141]
[1768088953183,0.19166003,908.59,907.69,2.447]
[1768088953385,0.19166003,908.59,907.7,0.67928321]
[1768088953583,0.19166003,908.59,907.71,0.67928321]
[1768088953782,0.19166003,908.59,907.72,0.67928321]
[1768088953984,0.19166003,908.59,907.73,0.67928321]
[1768088954280,0.19166003,908.59,907.74,0.67928321]
[1768088954482,0.19166003,908.59,907.75,0.67928321]
[1768088954682,0.19166003,908.59,907.76,0.67928321]
[1768088954881,0.19166003,908.59,907.77,0.67928321]
[1768088955081,0.19166003,908.59,907.78,0.67928321]
[1768088955281,0.19166003,908.59,907.69,2.447]
[1768088955282,0.19166003,908.59,907.79,0.67928321]
[1768088955485,0.19166003,908.59,907.8,0.67928321]
[1768088955693,0.19166003,908.59,907.81,0.67928321]
[1768088955887,0.19166003,908.59,907.82,0.67928321]
[1768088956088,0.19166003,908.59,907.83,0.67928321]
[1768088956289,0.19166003,908.59,907.84,0.67928321]
[1768088956488,0.19166003,908.59,907.85,0.67928321]
[1768088956792,0.19166003,908.59,907.86,0.67928321]
[1768088956988,0.19166003,908.59,907.87,0.67928321]
[1768088957192,0.19166003,908.59,907.88,0.67928321]
[1768088957392,0.19166003,908.59,907.89,0.67928321]
[1768088957591,0.19166003,908.59,907.9,0.67928321]
[1768088957792,0.19166003,908.59,907.91,0.67928321]
[1768088957995,0.19166003,908.59,907.92,0.67928321]
[1768088958193,0.19166003,908.59,907.93,0.67928321]
[1768088958396,0.19166003,908.59,907.69,2.447]
[1768088958593,0.19166003,908.59,907.7,0.67938983]
[1768088958797,0.19166003,908.59,907.71,0.67938983]
[1768088958992,0.19166003,908.59,907.72,0.67938983]
[1768088959190,0.19166003,908.59,907.73,0.67938983]
[1768088959396,0.19166003,908.59,907.74,0.67938983]
[1768088959592,0.19166003,908.59,907.75,0.67938983]
[1768088959793,0.19166003,908.59,907.76,0.67938983]
[1768088959993,0.19166003,908.59,907.77,0.67938983]
[1768088960195,0.19166003,908.59,907.78,0.67938983]
[1768088960401,0.19166003,908.59,907.79,0.67938983]
[1768088960696,0.19166003,908.59,907.8,0.67938983]
[1768088960898,0.19166003,908.59,907.81,0.67938983]
[1768088961098,0.19166003,908.59,907.82,0.67938983]
[1768088961299,0.19166003,908.59,907.83,0.67938983]
[1768088961499,0.19166003,908.59,907.84,0.67938983]
[1768088961696,0.19166003,908.59,907.69,2.447]
[1768088961896,0.19166003,908.59,907.7,0.6792609]
[1768088962199,0.19166003,908.59,907.71,0.6792609]
[1768088962400,0.19166003,908.59,907.72,0.6792609]
[1768088962597,0.19166003,908.59,907.73,0.6792609]
[1768088962800,0.19166003,908.59,907.74,0.6792609]
[1768088963001,0.19166003,908.59,907.75,0.6792609]
[1768088963298,0.19166003,908.59,907.76,0.6792609]
[1768088963601,0.19166003,908.59,907.77,0.6792609]
[1768088963900,0.19166003,908.59,907.78,0.6792609]
[1768088964102,0.19166003,908.59,907.79,0.6792609]
[1768088964300,0.19166003,908.59,907.8,0.6792609]
[1768088964600,0.19166003,908.59,907.81,0.6792609]
[1768088964800,0.19166003,908.59,907.82,0.6792609]
[1768088965000,0.19166003,908.59,907.83,0.6792609]
[1768088965201,0.19166003,908.59,907.69,2.447]
[1768088965399,0.19166003,908.59,907.7,0.67906467]
[1768088965602,0.19166003,908.59,907.71,0.67906467]
[1768088965800,0.19166003,908.59,907.72,0.67906467]
[1768088965999,0.19166003,908.59,907.73,0.67906467]
[1768088966201,0.19166003,908.59,907.74,0.67906467]
[1768088966401,0.19166003,908.59,907.75,0.67906467]
[1768088966699,0.19166003,908.59,907.76,0.67906467]
[1768088966902,0.19166003,908.59,907.69,2.447]
[1768088967199,0.19166003,908.59,907.7,0.67929698]
[1768088967402,0.19166003,908.59,907.71,0.67929698]
[1768088967598,0.19166003,908.59,907.72,0.67929698]
[1768088967799,0.19166003,908.59,907.73,0.67929698]
[1768088968006,0.19166003,908.59,907.74,0.67929698]
[1768088968205,0.19166003,908.59,907.69,2.447]
[1768088968506,0.19166003,908.59,907.7,0.67900825]
[1768088968704,0.19166003,908.59,907.71,0.67900825]
[1768088969004,0.19166003,908.59,907.72,0.67900825]
[1768088969202,0.19166003,908.59,907.73,0.67900825]
[1768088969403,0.19166003,908.59,907.69,2.447]
[1768088969704,0.19166003,908.59,907.7,0.678908]
[1768088969904,0.19166003,908.59,907.71,0.678908]
[1768088970101,0.19166003,908.59,907.72,0.678908]
[1768088970306,0.19166003,908.59,907.69,2.447]
[1768088970602,0.19166003,908.59,907.7,0.67882334]
[1768088970801,0.19166003,908.59,907.71,0.67882334]
[1768088971101,0.19166003,908.59,907.72,0.67882334]
[1768088971301,0.19166003,908.59,907.69,2.447]
[1768088971506,0.19166003,908.59,907.7,0.67874973]
[1768088971807,0.19166003,908.59,907.71,0.67874973]
[1768088972002,0.19166003,908.59,907.72,0.67874973]
[1768088972202,0.19166003,908.59,907.69,2.447]
[1768088972401,0.19166003,908.59,907.7,0.6788297]
[1768088972601,0.19166003,908.59,907.71,0.6788297]
[1768088972807,0.19166003,908.59,907.69,2.447]
[1768088973106,0.19166003,908.59,907.7,0.67882978]
[1768088973406,0.19166003,908.59,907.69,2.447]
[1768088973604,0.19166003,908.59,907.7,0.67880321]
[1768088973802,0.19166003,908.59,907.69,2.447]
[1768088974003,0.19166003,908.59,907.7,0.67882485]
[1768088974307,0.19166003,908.59,907.69,2.447]
[1768088987112,2.75443386,909.31,907.69,2.447]
[1768088987312,0.19159039,908.37,907.69,2.447]
[1768088987513,2.75443386,909.31,907.69,2.447]
[1768088987712,0.19159039,908.21,907.69,2.447]
[1768088988015,2.75443386,909.31,907.69,2.447]
[1768088988315,0.19159039,908.17,907.69,2.447]
[1768088988515,2.75443386,909.31,907.69,2.447]
[1768088988910,0.19159039,908.17,907.69,2.447]
[1768088989115,2.75443386,909.31,907.69,2.447]
[1768088989312,0.19159039,908.17,907.69,2.447]
[1768088989516,2.75443386,909.31,907.69,2.447]
[1768088989816,0.19159039,908.17,907.69,2.447]
[1768088990016,0.19159039,908.17,907.63,8.80242522]
[1768088990216,2.75443386,909.31,907.64,0.67835158]
[1768088990417,0.19159039,908.17,907.65,0.67835158]
[1768088990616,2.75443386,909.31,907.66,0.67835158]
[1768088990814,2.75443386,909.31,907.67,0.67835158]
[1768088991017,0.1915925,908.17,907.68,0.67835158]
[1768088991314,2.75443386,909.31,907.63,8.80242522]
[1768088991517,0.19159092,908.17,907.64,0.67838723]
[1768088991718,2.75443386,909.31,907.65,0.67838723]
[1768088992015,0.19159303,908.17,907.66,0.67838723]
[1768088992217,2.75443386,909.31,907.67,0.67838723]
[1768088992417,0.19159198,908.17,907.68,0.67838723]
[1768088992713,2.75443386,909.31,907.63,8.80242522]
[1768088992917,0.19159092,908.17,907.64,0.67837009]
[1768088993114,0.19159092,908.17,907.65,0.67837009]
[1768088993316,2.75443386,909.31,907.66,0.67837009]
[1768088993515,0.19159303,908.17,907.67,0.67837009]
[1768088993715,2.75443386,909.3,907.68,0.67837009]
[1768088993915,2.75443386,909.3,907.65,1.754]
[1768088994218,0.19159198,908.17,907.66,0.6783781]
[1768088994419,2.75443386,909.3,907.67,0.6783781]
[1768088994614,0.1915925,908.17,907.68,0.6783781]
[1768088994815,2.75443386,909.3,907.69,0.6783781]
[1768088995014,2.75443386,909.3,907.65,1.754]
[1768088995314,2.75443386,909.3,907.66,0.67835797]
[1768088995516,2.75443386,909.3,907.67,0.67835797]
[1768088995717,0.19159303,908.89,907.68,0.67835797]
[1768088995916,0.19159303,908.89,907.69,0.67835797]
[1768088996113,0.19159303,908.89,907.65,1.754]
[1768088996314,0.19159303,908.89,907.66,0.67831127]
[1768088996614,0.19159303,908.89,907.67,0.67831127]
[1768088996813,0.19159303,908.89,907.68,0.67831127]
[1768088997018,0.19159303,908.89,907.69,0.67831127]
[1768088997313,0.19159303,908.89,907.65,1.754]
[1768088997518,0.19159303,908.89,907.66,0.67840964]
[1768088997815,0.19159303,908.89,907.67,0.67840964]
[1768088998015,0.19159303,908.89,907.68,0.67840964]
[1768088998312,0.19159303,908.89,907.69,0.67840964]
[1768088998614,0.19159303,908.89,907.65,1.754]
[1768088998813,0.19159303,908.89,907.66,0.67846923]
[1768088999116,0.19159303,908.89,907.67,0.67846923]
[1768088999315,0.19159303,908.89,907.68,0.67846923]
[1768088999615,0.19159303,908.89,907.69,0.67846923]
[1768088999818,0.19159303,908.89,907.7,0.67846923]
[1768089000020,0.19159303,908.89,907.65,1.754]
[1768089000317,0.19159303,908.89,907.66,0.67853715]
[1768089000620,0.19159303,908.89,907.67,0.67853715]
[1768089000821,0.19159303,908.89,907.68,0.67853715]
[1768089001115,0.19159303,908.89,907.69,0.67853715]
[1768089001320,0.19159303,908.89,907.7,0.67853715]
[1768089001521,0.19159303,908.89,907.71,0.67853715]
[1768089001717,0.19159303,908.89,907.65,1.754]
[1768089001922,0.19159303,908.89,907.66,0.67867545]
[1768089002222,0.19159303,908.89,907.67,0.67867545]
[1768089002423,0.19159303,908.89,907.68,0.67867545]
[1768089002622,0.19159303,908.89,907.69,0.67867545]
[1768089002923,0.19159303,908.89,907.7,0.67867545]
[1768089003122,0.19159303,908.89,907.71,0.67867545]
[1768089003323,0.19159303,908.89,907.72,0.67945785]
[1768089003622,0.19159303,908.89,907.65,1.754]
[1768089003922,0.19159303,908.89,907.66,0.67945778]
[1768089004122,0.19159303,908.89,907.67,0.67945778]
[1768089004423,0.19159303,908.89,907.68,0.67945778]
[1768089004722,0.19159303,908.89,907.69,0.67945778]
[1768089004918,0.19159303,908.89,907.7,0.67945778]
[1768089005123,0.19159303,908.89,907.71,0.67945778]
[1768089005320,0.19159303,908.89,907.72,0.67945778]
[1768089005524,0.19159303,908.89,907.73,0.67945778]
[1768089005725,0.19159303,908.89,907.65,1.754]
[1768089005923,0.19159303,908.89,907.66,0.67965683]
[1768089006125,0.19159303,908.89,907.67,0.67965683]
[1768089006325,0.19159303,908.89,907.68,0.67965683]
[1768089006523,0.19159303,908.89,907.69,0.67965683]
[1768089006824,0.19159303,908.89,907.7,0.67965683]
[1768089007023,0.19159303,908.89,907.71,0.67965683]
[1768089007224,0.19159303,908.89,907.72,0.67965683]
[1768089007423,0.19159303,908.89,907.73,0.67965683]
[1768089007624,0.19159303,908.89,907.74,0.67965683]
[1768089007922,0.19159303,908.89,907.65,1.754]
[1768089008126,0.19159303,908.89,907.66,0.67978217]
[1768089008326,0.19159303,908.89,907.67,0.67978217]
[1768089008525,0.19159303,908.89,907.68,0.67978217]
[1768089008728,0.19159303,908.89,907.69,0.67978217]
[1768089008929,0.19159303,908.89,907.7,0.67978217]
[1768089009124,0.19159303,908.89,907.71,0.67978217]
[1768089009328,0.19159303,908.89,907.72,0.67978217]
[1768089009627,0.19159303,908.89,907.73,0.67978217]
[1768089009926,0.19159303,908.89,907.74,0.67978217]
[1768089010128,0.19159303,908.89,907.75,0.67978217]
[1768089010429,0.19159303,908.89,907.76,0.68026296]
[1768089010629,0.19159303,908.89,907.65,1.754]
[1768089010829,0.19159303,908.89,907.66,0.68026296]
[1768089011124,0.19159303,908.89,907.67,0.68026296]
[1768089011329,0.19159303,908.89,907.68,0.68026296]
[1768089011625,0.19159303,908.89,907.69,0.68026296]
[1768089011926,0.19159303,908.89,907.7,0.68026296]
[1768089012228,0.19159303,908.89,907.71,0.68026296]
[1768089012424,0.19159303,908.89,907.72,0.68026296]
[1768089012631,0.19159303,908.89,907.73,0.68026296]
[1768089012931,0.19159303,908.89,907.74,0.68026296]
[1768089013131,0.19159303,908.89,907.65,1.754]
[1768089013132,0.19159303,908.89,907.75,0.68026296]
[1768089013332,0.19159303,908.89,907.76,0.68026296]
[1768089013532,0.19159303,908.89,907.77,0.68026296]
[1768089013734,0.19159303,908.89,907.65,1.754]
[1768089013927,0.19159303,908.89,907.66,0.68053396]
[1768089014130,0.19159303,908.89,907.67,0.68053396]
[1768089014327,0.19159303,908.89,907.68,0.68053396]
[1768089014531,0.19159303,908.89,907.69,0.68053396]
[1768089014729,0.19159303,908.89,907.7,0.68053396]
[1768089014927,0.19159303,908.89,907.71,0.68053396]
[1768089015129,0.19159303,908.89,907.72,0.68053396]
[1768089015330,0.19159303,908.89,907.73,0.68053396]
[1768089015533,0.19159303,908.89,907.74,0.68053396]
[1768089015728,0.19159303,908.89,907.75,0.68053396]
[1768089015930,0.19159303,908.89,907.76,0.68053396]
[1768089016129,0.19159303,908.89,907.77,0.68053396]
[1768089016334,0.19159303,908.89,907.65,1.754]
[1768089016531,0.19159303,908.89,907.66,0.68056926]
[1768089016831,0.19159303,908.89,907.67,0.68056926]
[1768089017036,0.19159303,908.89,907.68,0.68056926]
[1768089017334,0.19159303,908.89,907.69,0.68056926]
[1768089017534,0.19159303,908.89,907.7,0.68056926]
[1768089017734,0.19159303,908.89,907.71,0.68056926]
[1768089017934,0.19159303,908.89,907.72,0.68056926]
[1768089018134,0.19159303,908.89,907.73,0.68056926]
[1768089018330,0.19159303,908.89,907.74,0.68056926]
[1768089018530,0.19159303,908.89,907.75,0.68056926]
[1768089018734,0.19159303,908.89,907.76,0.68056926]
[1768089018936,0.19159303,908.89,907.77,0.68056926]
[1768089019132,0.19159303,908.89,907.65,1.754]
[1768089019436,0.19159303,908.89,907.66,0.68063366]
[1768089019634,0.19159303,908.89,907.67,0.68063366]
[1768089019836,0.19159303,908.89,907.68,0.68063366]
[1768089020037,0.19159303,908.89,907.69,0.68063366]
[1768089020235,0.19159303,908.89,907.7,0.68063366]
[1768089020438,0.19159303,908.89,907.71,0.68063366]
[1768089020639,0.19159303,908.89,907.72,0.68063366]
[1768089020839,0.19159303,908.89,907.73,0.68063366]
[1768089021040,0.19159303,908.89,907.74,0.68063366]
[1768089021240,0.19159303,908.89,907.75,0.68063366]
[1768089021440,0.19159303,908.89,907.76,0.68063366]
[1768089021739,0.19159303,908.89,907.77,0.68063366]
[1768089022036,0.19159303,908.89,907.65,1.754]
[1768089022236,0.19159303,908.89,907.66,0.6806558]
[1768089022438,0.19159303,908.89,907.67,0.6806558]
[1768089022640,0.19159303,908.89,907.68,0.6806558]
[1768089022935,0.19159303,908.89,907.69,0.6806558]
[1768089023140,0.19159303,908.89,907.7,0.6806558]
[1768089023438,0.19159303,908.89,907.71,0.6806558]
[1768089023638,0.19159303,908.89,907.72,0.6806558]
[1768089023938,0.19159303,908.89,907.73,0.6806558]
[1768089024137,0.19159303,908.89,907.74,0.6806558]
[1768089024338,0.19159303,908.89,907.75,0.6806558]
[1768089024540,0.19159303,908.89,907.76,0.6806558]
[1768089024738,0.19159303,908.89,907.77,0.6806558]
[1768089024938,0.19159303,908.89,907.65,1.754]
[1768089025140,0.19159303,908.89,907.66,0.68093902]
[1768089025343,0.19159303,908.89,907.67,0.68093902]
[1768089025543,0.19159303,908.89,907.68,0.68093902]
[1768089025745,0.19159303,908.89,907.69,0.68093902]
[1768089025942,0.19159303,908.89,907.7,0.68093902]
[1768089026142,0.19159303,908.89,907.71,0.68093902]
[1768089026346,0.19159303,908.89,907.72,0.68093902]
[1768089026542,0.19159303,908.89,907.73,0.68093902]
[1768089026745,0.19159303,908.89,907.74,0.68093902]
[1768089026942,0.19159303,908.89,907.75,0.68093902]
[1768089027145,0.19159303,908.89,907.76,0.68093902]
[1768089027345,0.19159303,908.89,907.77,0.68093902]
[1768089027546,0.19159303,908.89,907.65,1.754]
[1768089027843,0.19159303,908.89,907.66,0.68087434]
[1768089028141,0.19159303,908.89,907.67,0.68087434]
[1768089028341,0.19159303,908.89,907.68,0.68087434]
[1768089028546,0.19159303,908.89,907.69,0.68087434]
[1768089028847,0.19159303,908.89,907.7,0.68087434]
[1768089029046,0.19159303,908.89,907.71,0.68087434]
[1768089029345,0.19159303,908.89,907.72,0.68087434]
[1768089029541,0.19159303,908.89,907.73,0.68087434]
[1768089029742,0.19159303,908.89,907.74,0.68087434]
[1768089029944,0.19159303,908.89,907.75,0.68087434]
[1768089030145,0.19159303,908.89,907.76,0.68087434]
[1768089030343,0.19159303,908.89,907.77,0.68087434]
[1768089030543,0.19159303,908.89,907.65,1.754]
[1768089030743,0.19159303,908.89,907.66,0.68087509]
[1768089030944,0.19159303,908.89,907.67,0.68087509]
[1768089031149,0.19159303,908.89,907.68,0.68087509]
[1768089031349,0.19159303,908.89,907.69,0.68087509]
[1768089031550,0.19159303,908.89,907.7,0.68087509]
[1768089031845,0.19159303,908.89,907.71,0.68087509]
[1768089032049,0.19159303,908.89,907.72,0.68087509]
[1768089032249,0.19159303,908.89,907.73,0.68087509]
[1768089032447,0.19159303,908.89,907.74,0.68087509]
[1768089032649,0.19159303,908.89,907.75,0.68087509]
[1768089032946,0.19159303,908.89,907.76,0.68087509]
[1768089033246,0.19159303,908.89,907.77,0.68087509]
[1768089033449,0.19159303,908.89,907.78,0.68087509]
[1768089033746,0.19159303,908.89,907.65,1.754]
[1768089033944,0.19159303,908.89,907.66,0.68195115]
[1768089034144,0.19159303,908.89,907.67,0.68195115]
[1768089034352,0.19159303,908.89,907.68,0.68195115]
[1768089034546,0.19159303,908.89,907.69,0.68195115]
[1768089034744,0.19159303,908.89,907.7,0.68195115]
[1768089035049,0.19159303,908.89,907.71,0.68195115]
[1768089035250,0.19159303,908.89,907.72,0.68195115]
[1768089035448,0.19159303,908.89,907.73,0.68195115]
[1768089035647,0.19159303,908.89,907.74,0.68195115]
[1768089035850,0.19159303,908.89,907.75,0.68195115]
[1768089036146,0.19159303,908.89,907.65,1.754]
[1768089036147,0.19159303,908.89,907.76,0.68195115]
[1768089036446,0.19159303,908.89,907.77,0.68195115]
[1768089036651,0.19159303,908.89,907.78,0.68195115]
[1768089036848,0.19159303,908.89,907.65,1.754]
[1768089037152,0.19159303,908.89,907.66,0.68177832]
[1768089037351,0.19159303,908.89,907.67,0.68177832]
[1768089037552,0.19159303,908.89,907.68,0.68177832]
[1768089037752,0.19159303,908.89,907.69,0.68177832]
[1768089037953,0.19159303,908.89,907.65,1.754]
[1768089037954,0.19159303,908.89,907.7,0.68177832]
[1768089038153,0.19159303,908.89,907.71,0.68177832]
[1768089038348,0.19159303,908.89,907.72,0.68177832]
[1768089038548,0.19159303,908.89,907.73,0.68177832]
[1768089038755,0.19159303,908.89,907.74,0.68177832]
[1768089038951,0.19159303,908.89,907.75,0.68177832]
[1768089039151,0.19159303,908.89,907.76,0.68177832]
[1768089039350,0.19159303,908.89,907.77,0.68177832]
[1768089039651,0.19159303,908.89,907.78,0.68177832]
[1768089039854,0.19159303,908.89,907.65,1.754]
[1768089040153,0.19159303,908.89,907.66,0.68172437]
[1768089040449,0.19159303,908.89,907.67,0.68172437]
[1768089040653,0.19159303,908.89,907.68,0.68172437]
[1768089040952,0.19159303,908.89,907.69,0.68172437]
[1768089041153,0.19159303,908.89,907.7,0.68172437]
[1768089041453,0.19159303,908.89,907.71,0.68172437]
[1768089041653,0.19159303,908.89,907.72,0.68172437]
[1768089041857,0.19159303,908.89,907.73,0.68172437]
[1768089042057,0.19159303,908.89,907.74,0.68172437]
[1768089042254,0.19159303,908.89,907.75,0.68172437]
[1768089042457,0.19159303,908.89,907.76,0.68172437]
[1768089042656,0.19159303,908.89,907.77,0.68172437]
[1768089042858,0.19159303,908.89,907.78,0.68172437]
[1768089043058,0.19159303,908.89,907.65,1.754]
[1768089043255,0.19159303,908.89,907.66,0.68172425]
[1768089043558,0.19159303,908.89,907.67,0.68172425]
[1768089043858,0.19159303,908.89,907.68,0.68172425]
[1768089044059,0.19159303,908.89,907.69,0.68172425]
[1768089044359,0.19159303,908.89,907.7,0.68172425]
[1768089044558,0.19159303,908.89,907.65,1.754]
[1768089044559,0.19159303,908.89,907.71,0.68172425]
[1768089044754,0.19159303,908.89,907.72,0.68172425]
[1768089045058,0.19159303,908.89,907.73,0.68172425]
[1768089045255,0.19159303,908.89,907.74,0.68172425]
[1768089045453,0.19159303,908.89,907.75,0.68172425]
[1768089045758,0.19159303,908.89,907.76,0.68172425]
[1768089045956,0.19159303,908.89,907.77,0.68172425]
[1768089046155,0.19159303,908.89,907.78,0.68172425]
[1768089046358,0.19159303,908.89,907.65,1.754]
[1768089046555,0.19159303,908.89,907.66,0.68172431]
[1768089046756,0.19159303,908.89,907.67,0.68172431]
[1768089047059,0.19159303,908.89,907.68,0.68172431]
[1768089047357,0.19159303,908.89,907.69,0.68172431]
[1768089047557,0.19159303,908.89,907.7,0.68172431]
[1768089047756,0.19159303,908.89,907.71,0.68172431]
[1768089047954,0.19159303,908.89,907.72,0.68172431]
[1768089048159,0.19159303,908.89,907.73,0.68172431]
[1768089048456,0.19159303,908.89,907.74,0.68172431]
[1768089048660,0.19159303,908.89,907.75,0.68172431]
[1768089048959,0.19159303,908.89,907.76,0.68172431]
[1768089049161,0.19159303,908.89,907.77,0.68172431]
[1768089049357,0.19159303,908.89,907.78,0.68172431]
[1768089049661,0.19159303,908.89,907.65,1.754]
[1768089049962,0.19159303,908.89,907.66,0.68172413]
[1768089050162,0.19159303,908.89,907.67,0.68172413]
[1768089050362,0.19159303,908.89,907.68,0.68172413]
[1768089050658,0.19159303,908.89,907.69,0.68172413]
[1768089050862,0.19159303,908.89,907.7,0.68172413]
[1768089051063,0.19159303,908.89,907.71,0.68172413]
[1768089051364,0.19159303,908.89,907.72,0.68172413]
[1768089051560,0.19159303,908.89,907.73,0.68172413]
[1768089051761,0.19159303,908.89,907.74,0.68172413]
[1768089051962,0.19159303,908.89,907.75,0.68172413]
[1768089052161,0.19159303,908.89,907.76,0.68172413]
[1768089052362,0.19159303,908.89,907.77,0.68172413]
[1768089052559,0.19159303,908.89,907.78,0.68172413]
[1768089052764,0.19159303,908.89,907.65,1.754]
[1768089052966,0.19159303,908.89,907.66,0.68172437]
[1768089053262,0.19159303,908.89,907.67,0.68172437]
[1768089053464,0.19159303,908.89,907.68,0.68172437]
[1768089053668,0.19159303,908.89,907.69,0.68172437]
[1768089053863,0.19159303,908.89,907.7,0.68172437]
[1768089054064,0.19159303,908.89,907.71,0.68172437]
[1768089054264,0.19159303,908.89,907.72,0.68172437]
[1768089054467,0.19159303,908.89,907.73,0.68172437]
[1768089054667,0.19159303,908.89,907.74,0.68172437]
[1768089054964,0.19159303,908.89,907.75,0.68172437]
[1768089055167,0.19159303,908.89,907.76,0.68172437]
[1768089055366,0.19159303,908.89,907.77,0.68172437]
[1768089055665,0.19159303,908.89,907.78,0.68172437]
[1768089055864,0.19159303,908.89,907.63,8.80242522]
[1768089056168,0.19159303,908.89,907.64,0.68172434]
[1768089056368,0.19159303,908.89,907.65,0.68172434]
[1768089056664,0.19159303,908.89,907.66,0.68172434]
[1768089056864,0.19159303,908.89,907.67,0.68172434]
[1768089057068,0.19159303,908.89,907.68,0.68172434]
[1768089057368,0.19159303,908.89,907.69,0.68172434]
[1768089057570,0.19159303,908.89,907.7,0.68172434]
[1768089057866,0.19159303,908.89,907.71,0.68172434]
[1768089058166,0.19159303,908.89,907.72,0.68172434]
[1768089058370,0.19159303,908.89,907.73,0.68172434]
[1768089058665,0.19159303,908.89,907.74,0.68172434]
[1768089058866,0.19159303,908.89,907.75,0.68172434]
[1768089059069,0.19159303,908.89,907.76,0.68172434]
[1768089059269,0.19159303,908.89,907.77,0.68172434]
[1768089059566,0.19159303,908.89,907.69,2.18]
[1768089059866,0.19159303,908.89,907.7,0.68184213]
[1768089060069,0.19159303,908.89,907.71,0.68184213]
[1768089060270,0.19159303,908.89,907.72,0.68184213]
[1768089060469,0.19159303,908.89,907.73,0.68184213]
[1768089060669,0.19159303,908.89,907.74,0.68184213]
[1768089060866,0.19159303,908.89,907.75,0.68184213]
[1768089061070,0.19159303,908.89,907.76,0.68184213]
[1768089061266,0.19159303,908.89,907.77,0.68184213]
[1768089061570,0.19159303,908.89,907.69,2.18]
[1768089061768,0.19159303,908.89,907.7,0.6818419]
[1768089061967,0.19159303,908.89,907.71,0.6818419]
[1768089062167,0.19159303,908.89,907.72,0.6818419]
[1768089062470,0.19159303,908.89,907.73,0.6818419]
[1768089062670,0.19159303,908.89,907.74,0.6818419]
[1768089062866,0.19159303,908.89,907.75,0.6818419]
[1768089063170,0.19159303,908.89,907.76,0.6818419]
[1768089063466,0.19159303,908.89,907.77,0.6818419]
[1768089063669,0.19159303,908.89,907.78,0.6818419]
[1768089063870,0.19159303,908.89,907.69,2.18]
[1768089064070,0.19159303,908.89,907.7,0.68286579]
[1768089064270,0.19159303,908.89,907.71,0.68286579]
[1768089064470,0.19159303,908.89,907.72,0.68286579]
[1768089064671,0.19159303,908.89,907.73,0.68286579]
[1768089064871,0.19159303,908.89,907.74,0.68286579]
[1768089065171,0.19159303,908.89,907.75,0.68286579]
[1768089065371,0.19159303,908.89,907.76,0.68286579]
[1768089065671,0.19159303,908.89,907.77,0.68286579]
[1768089065868,0.19159303,908.89,907.78,0.68286579]
[1768089066072,0.19159303,908.89,907.69,2.18]
[1768089066272,0.19159303,908.89,907.7,0.68286581]
[1768089066473,0.19159303,908.89,907.71,0.68286581]
[1768089066768,0.19159303,908.89,907.72,0.68286581]
[1768089066972,0.19159303,908.89,907.73,0.68286581]
[1768089067273,0.19159303,908.89,907.74,0.68286581]
[1768089067569,0.19159303,908.89,907.69,2.18]
[1768089067570,0.19159303,908.89,907.75,0.68286581]
[1768089067767,0.19159303,908.89,907.76,0.68286581]
[1768089067971,0.19159303,908.89,907.77,0.68286581]
[1768089068174,0.19159303,908.89,907.78,0.68286581]
[1768089068469,0.19159303,908.89,907.69,2.18]
[1768089068773,0.19159303,908.89,907.7,0.68286594]
[1768089068968,0.19159303,908.89,907.71,0.68286594]
[1768089069172,0.19159303,908.89,907.72,0.68286594]
[1768089069375,0.19159303,908.89,907.73,0.68286594]
[1768089069570,0.19159303,908.89,907.74,0.68286594]
[1768089069872,0.19159303,908.89,907.75,0.68286594]
[1768089070072,0.19159303,908.89,907.76,0.68286594]
[1768089070274,0.19159303,908.89,907.77,0.68286594]
[1768089070574,0.19159303,908.89,907.78,0.68286594]
[1768089070775,0.19159303,908.89,907.69,2.18]
[1768089070972,0.19159303,908.89,907.7,0.68286576]
[1768089071172,0.19159303,908.89,907.71,0.68286576]
[1768089071371,0.19159303,908.89,907.72,0.68286576]
[1768089071571,0.19159303,908.89,907.73,0.68286576]
[1768089071775,0.19159303,908.89,907.74,0.68286576]
[1768089071976,0.19159303,908.89,907.75,0.68286576]
[1768089072174,0.19159303,908.89,907.76,0.68286576]
[1768089072473,0.19159303,908.89,907.77,0.68286576]
[1768089072770,0.19159303,908.89,907.78,0.68286576]
[1768089072979,0.19159303,908.89,907.69,2.18]
[1768089073176,0.19159303,908.89,907.7,0.68286581]
[1768089073374,0.19159303,908.89,907.71,0.68286581]
[1768089073676,0.19159303,908.89,907.72,0.68286581]
[1768089073875,0.19159303,908.89,907.73,0.68286581]
[1768089074074,0.19159303,908.89,907.74,0.68286581]
[1768089074279,0.19159303,908.89,907.75,0.68286581]
[1768089074479,0.19159303,908.89,907.76,0.68286581]
[1768089074675,0.19159303,908.89,907.77,0.68286581]
[1768089074876,0.19159303,908.89,907.78,0.68286581]
[1768089075181,0.19159303,908.89,907.69,2.18]
[1768089075380,0.19159303,908.89,907.7,0.68286594]
[1768089075579,0.19159303,908.89,907.71,0.68286594]
[1768089075776,0.19159303,908.89,907.72,0.68286594]
[1768089075980,0.19159303,908.89,907.73,0.68286594]
[1768089076176,0.19159303,908.89,907.74,0.68286594]
[1768089076479,0.19159303,908.89,907.75,0.68286594]